Cogmind - Beta 17.1 @@@ ROGUE MODE // 2026.09.03 @ 12:12:01 Player: pirluit Result: Destroyed by as-31192 with Assembled F-torch Performance ------------- Evolutions (1) 500 Regions Visited (4) 800 Robots Destroyed (30) 150 Value Destroyed (720) 720 Prototype IDs (0) 0 Alien Tech Used (0) 0 Bonus (13) 13 TOTAL SCORE: 2183 Bonus ------- Follower Combat Kills 60 Friendly Fire -47 Cogmind --------- Core Integrity 0/400 Matter 248/300 Energy 100/100 System Corruption 11% Temperature Cool (20) Movement Core (50) Location -9/Exiles Parts ------- > --- POWER (1) -------- (None) > --- PROPULSION (4) --- (None) > --- UTILITY (2) ------ Terrain Scan Processor > --- WEAPON (2) ------- Hammer > --- INVENTORY (5) ---- Light Ion Engine Heavy Ion Engine Large Battery (200) Shield Generator Mining Laser Peak State ------------ > --- POWER ------------ Light Nuclear Core > --- PROPULSION ------- Improved Hover Unit Improved Hover Unit Improved Hover Unit Improved Hover Unit > --- UTILITY ---------- Small Storage Unit Power Shielding > --- WEAPON ----------- Particle Gun Light Assault Rifle > --- INVENTORY -------- Ion Engine Heavy Ion Engine Improved Hover Unit Improved Hover Unit Small Storage Unit Shield Generator Small Laser Mining Laser [Rating: 17] Favorites ----------- Power Ion Engine Engine Ion Engine Power Core Light Nuclear Core Propulsion Light Treads Treads Light Treads Leg Aluminum Leg Hover Unit Improved Hover Unit Utility Small Storage Unit Device Seismic Detector Storage Small Storage Unit Processor Terrain Scan Processor Protection Power Shielding Weapon Light Assault Rifle Energy Gun Small Laser Ballistic Gun Light Assault Rifle Ballistic Cannon Bore Cannon Special Weapon Mining Laser Impact Weapon Hammer Build | -11 -10 -9 -9 -9 ------- Run | Yrd Mat Mat Min Exi Slots Evolved 2 | . . 2 . . Power . | . . . . . Propulsion 2 | . . 2 . . Utility . | . . . . . Weapon . | . . . . . Parts Attached 38 | 9 1 20 6 2 Power 6 | 1 1 3 . 1 Engine 4 | 1 1 1 . 1 Core 2 | . . 2 . . Reactor . | . . . . . Propulsion 14 | 2 . 11 1 . Treads 3 | . . 3 . . Leg 4 | 2 . 1 1 . Wheel . | . . . . . Hover 7 | . . 7 . . Flight . | . . . . . Utility 7 | 2 . 3 2 . Device 2 | 1 . 1 . . Storage 3 | 1 . 1 1 . Processor 1 | . . . 1 . Hackware . | . . . . . Protection 1 | . . 1 . . Artifact . | . . . . . Weapon 11 | 4 . 3 3 1 Energy Gun 4 | 2 . 2 . . Energy Cannon . | . . . . . Ballistic Gun 4 | 1 . 1 1 1 Ballistic Cannon 1 | . . . 1 . Launcher . | . . . . . Special Weapon 1 | 1 . . . . Impact Weapon 1 | . . . 1 . Slashing Weapon . | . . . . . Piercing Weapon . | . . . . . Special Melee Weapon . | . . . . . Unidentified Prototypes . | . . . . . Parts Lost 15 | . 2 6 . 7 Power 2 | . . 1 . 1 Propulsion 8 | . . 4 . 4 Utility 2 | . 1 1 . . Weapon 3 | . 1 . . 2 Highest Loss Streak 7 | . 2 4 . 7 To Critical Strikes . | . . . . . Average Backups 7 | 3 6 7 7 7 Power 1 | . . 1 1 2 Propulsion 1 | 1 2 1 . . Utility 1 | . . 1 2 2 Weapon 2 | . 2 1 3 2 Tool/Special . | . . . . . Unused Backups 8 | . . 5 . 3 Power 3 | . . . . 3 Propulsion 2 | . . 2 . . Utility 1 | . . 1 . . Weapon 1 | . . 1 . . Tool/Special 1 | . . 1 . . Average Slot Usage (%) 92 | . 91 90 93 94 Engine 9 | . 7 9 11 9 Treads 13 | . . 6 19 20 Leg 12 | . 28 12 8 10 Hover 13 | . . 18 15 10 Device 2 | . 13 1 . . Storage 11 | . 14 11 12 10 Processor 3 | . . . 3 11 Protection 2 | . . 6 . . Energy Gun 10 | . 13 15 10 . Ballistic Gun 7 | . 13 6 4 10 Ballistic Cannon 3 | . . . 5 10 Peak Build Rating 17 | 7 7 17 16 16 Average Rating 11 | 5 6 11 13 15 On Entrance 8 | . 7 5 12 16 Avg Prop Armor Cover (%) 9 | . . 9 9 9 Naked Turns . | . . . . . Heaviest Build 23 | 11 13 15 23 20 Greatest Support 40 | 20 20 40 40 40 Greatest Overweight (x) 5 | . . 1 1 5 Average Overweight (x) . | . . . . . Largest Inventory Capacity 8 | 8 8 8 8 8 Average Capacity 7 | 6 8 7 8 7 Most Carried 8 | 5 7 8 8 8 Average Carried 7 | 3 6 7 7 6 Final Capacity 8 | 8 8 8 8 5 Final Carried 8 | 5 6 8 8 5 Class Distribution -------------------- 61% | Scavenger-Mutant 38% | Mutant Dominant Class ---------------- Mutant | -10/Materials Mutant | -9/Materials Scavenger-Mutant | -9/Mines Scavenger-Mutant | -9/Exiles Resources | -11 -10 -9 -9 -9 ----------- Run | Yrd Mat Mat Min Exi Matter Collected 791 | 152 140 319 180 . Remotely . | . . . . . Salvage Created 925 | 17 140 685 64 19 Parts 57 | 3 8 39 7 . Haulers Intercepted . | . . . . . Recyclers Shooed . | . . . . . Parts Field Recycled . | . . . . . Retrieved Matter . | . . . . . Parts Self-Destructed . | . . . . . Prevented . | . . . . . Parts Restored . | . . . . . Kills | -11 -10 -9 -9 -9 ------- Run | Yrd Mat Mat Min Exi Combat Hostiles Destroyed 24 | . 5 14 4 1 Guns 20 | . 5 14 1 . Cannons 3 | . . . 3 . Classes Destroyed 10 | 1 2 5 1 1 Worker 2 | . . 1 1 . Builder 1 | . . 1 . . Tunneler 1 | 1 . . . . Watcher 2 | . . 2 . . Swarmer 7 | . 3 . 4 . Grunt 13 | . 2 11 . . Brawler 1 | . . 1 . . Sentry 2 | . . 2 . . Zionite 1 | . . . 1 . Assembled 1 | . . . . 1 Best Kill Streak 6 | 1 5 6 3 1 Combat Bots Only 5 | . 5 5 3 1 Max Kills in Single Turn 1 | 1 1 1 1 1 Gunslinging . | . . . . . Exploded . | . . . . . Melee . | . . . . . Uniques/NPCs Destroyed . | . . . . . Combat | -11 -10 -9 -9 -9 -------- Run | Yrd Mat Mat Min Exi Hostile Shots Fired 218 | . 43 83 23 69 Missed 53 | . 8 23 5 17 Hits 165 | . 35 60 18 52 Melee 10 | . . 7 . 3 Projectile 155 | . 35 53 18 49 AOE 2 | . . . 2 . Critical Strikes 4 | . . 2 . 2 Actively Blocked 1 | . . 1 . . Part Disruptions 2 | . . . . 2 Damage Taken 2087 | . 347 801 189 750 Core 473 | . 72 171 17 213 Absorbed by Shields 51 | . . 33 18 . Redirected to Shielding 28 | . . 28 . . Regen/Repaired (Parts) 74 | . . 74 . . Core Remaining (%) 85 | 100 71 . . . Volleys Fired 102 | 8 18 61 11 4 Largest 2 | 2 2 2 2 2 Hottest 120 | 120 60 105 105 68 Shots Fired 195 | 16 36 111 25 7 Gun 185 | 15 36 111 18 5 Cannon 9 | . . . 7 2 Launcher . | . . . . . Special 1 | 1 . . . . Kinetic 92 | 8 18 44 15 7 Thermal 103 | 8 18 67 10 . Explosive . | . . . . . Electromagnetic . | . . . . . Robot Hit Streak 8 | 2 3 8 3 4 Robot Miss Streak 5 | 2 2 5 2 1 Penetration Max . | . . . . . Secondary Targets 5 | . 3 2 . . Max Gunslinging Chain 1 | . 1 1 . . Shots Hit Robots 113 | 8 19 65 14 7 Core Hits 52 | 2 10 32 7 1 Critical Kills 1 | . . . 1 . Critical Parts Destroyed 2 | . . 1 . 1 Critical Strikes 4 | . . 2 1 1 Burn 1 | . . 1 . . Destroy 2 | . . 1 1 . Smash 1 | . . . . 1 Melee Attacks 10 | . . . 3 7 Impact 10 | . . . 3 7 Slashing . | . . . . . Piercing . | . . . . . Sneak Attacks . | . . . . . Combat Hostiles . | . . . . . Follow-up Attacks . | . . . . . Damage Inflicted 1511 | 104 183 788 253 183 Guns 1224 | 104 183 780 133 24 Cannons 144 | . . . 119 25 Explosions . | . . . . . Melee 134 | . . . . 134 Ramming 9 | . . 8 1 . Kinetic 583 | 61 82 232 159 49 Thermal 785 | 43 101 548 93 . Explosive . | . . . . . Electromagnetic . | . . . . . Impact 134 | . . . . 134 Slashing . | . . . . . Piercing . | . . . . . Highest Corruption 11 | . . 11 11 11 Average Corruption 10 | . . 10 11 11 Corruption Purged . | . . . . . Corruption Blocked . | . . . . . Effects 66 | . . 11 40 15 Message Errors 22 | . . 4 13 5 Matter Fused 8 | . . 2 3 3 Heat Flow Errors 5 | . . . 4 1 Energy Discharges 11 | . . 3 6 2 Parts Rejected 2 | . . 1 1 . Parts Fused 1 | . . . 1 . Data Loss (minor) 7 | . . . 6 1 Data Loss (major) 2 | . . . 2 . Misfires 6 | . . . 4 2 Misdirections 1 | . . . . 1 Weapon Failures 1 | . . 1 . . Overload Shots . | . . . . . Overflow Damage 54 | . . . . 54 Projectiles . | . . . . . Explosions . | . . . . . Melee 54 | . . . . 54 Knockbacks 2 | . . . 1 1 Impact 1 | . . . . 1 Kinetic 1 | . . . 1 . Secondary . | . . . . . Self-Inflicted Damage 4 | . . 4 . . Shots . | . . . . . Rammed 3 | . . 2 1 . Targets Rammed 3 | . . 2 1 . Kicked . | . . . . . Crushed . | . . . . . Highest Temperature 465 | 40 96 465 225 120 Average Temperature 90 | 19 39 124 55 48 Received Heat Transfer 708 | . 126 302 . 280 Effects 7 | . . 7 . . Shutdowns 3 | . . 3 . . Energy Bleed 2 | . . 2 . . Interference 1 | . . 1 . . Matter Decay 1 | . . 1 . . Siege Activations . | . . . . . Martial Activations . | . . . . . Shielding Activations . | . . . . . Robots Disrupted . | . . . . . Combat Hostiles . | . . . . . Robots Corrupted 1 | . . . . 1 Combat Hostiles 1 | . . . . 1 Parts Fried . | . . . . . Impact Corruptions 3 | . . . . 3 Robots Melted . | . . . . . Combat Hostiles . | . . . . . Parts Melted 1 | . . 1 . . Heat Transferred 1899 | 100 225 1363 211 . Parts Sabotaged . | . . . . . Parts Stolen . | . . . . . Parts Stripped . | . . . . . Power Chain Reactions . | . . . . . Alert | -11 -10 -9 -9 -9 ------- Run | Yrd Mat Mat Min Exi Maximum Alert Level 1 | . . 1 . . Low Security (%) 97 | 100 100 93 100 . Level 1 2 | . . 6 . . Level 2 . | . . . . . Level 3 . | . . . . . Level 4 . | . . . . . Level 5 . | . . . . . High Security . | . . . . . Max Security . | . . . . . Peak Influence 212 | 5 100 212 89 . Initial 59 | . . . 59 . Average 47 | . 37 83 25 . Influence Increases 795 | 5 114 448 228 . Destroy 0b10 Robot/C 540 | . 100 280 160 . Destroy 0b10 Robot/NC 30 | 5 . 20 5 . Destroy Leader 124 | . 10 84 30 . Allied During Kill 11 | . . . 11 . Successful Hack 7 | . 4 3 . . Disable Machine 15 | . . . 15 . Destroy Structure 8 | . . 1 7 . Partial Spotted 15 | . . 15 . . Lose Combat Pursuer 45 | . . 45 . . Influence Decreases 795 | 5 114 295 323 58 Entered New Map 152 | . . . 94 58 Time Decay 583 | 5 114 235 229 . Lost Part 60 | . . 60 . . Squads Dispatched 5 | . 1 4 . . Investigation 2 | . . 2 . . Extermination . | . . . . . Reinforcement 3 | . 1 2 . . Assault . | . . . . . Garrison . | . . . . . Intercept . | . . . . . Searches Triggered . | . . . . . Construction Impeded . | . . . . . Haulers Reinforced . | . . . . . Active Scanning Responses . | . . . . . Cargo Convoy Interrupts . | . . . . . Stealth | -11 -10 -9 -9 -9 --------- Run | Yrd Mat Mat Min Exi Distress Signals 3 | . 1 2 . . Communications Jammed . | . . . . . Distress Signals . | . . . . . Times Spotted 53 | . 12 25 8 8 Peak Tracking Total 9 | . 6 9 4 9 Tactical Retreats 3 | . . 3 . . Traps | -11 -10 -9 -9 -9 ------- Run | Yrd Mat Mat Min Exi Traps Triggered 3 | . 1 2 . . Indirectly . | . . . . . Trap Hack Attempts . | . . . . . Triggered . | . . . . . Disarmed . | . . . . . Reprogrammed . | . . . . . Reused . | . . . . . Traps Extracted . | . . . . . Installed . | . . . . . Triggered . | . . . . . Machines | -11 -10 -9 -9 -9 ---------- Run | Yrd Mat Mat Min Exi Machines Disabled 3 | . . 1 1 1 Max in Single Turn 1 | . . 1 1 1 Machines Repaired . | . . . . . Machines Dismantled . | . . . . . Machines Sabotaged . | . . . . . Overloaded Fab Kills . | . . . . . Hacking | -11 -10 -9 -9 -9 --------- Run | Yrd Mat Mat Min Exi Machines Accessed 9 | . 3 3 . 3 Terminals 4 | . 2 2 . . Fabricators . | . . . . . Repair Stations 1 | . . 1 . . Recycling Units 1 | . 1 . . . Scanalyzers . | . . . . . Garrison Access . | . . . . . Total Hacks 40 | . 7 7 . 26 Successful 30 | . 1 3 . 26 Failed 10 | . 6 4 . . Catastrophic 2 | . 1 1 . . Database Lockouts . | . . . . . Manual 4 | . 1 2 . 1 Terminals 9 | . 6 3 . . Fabricators . | . . . . . Repair Stations 4 | . . 4 . . Recycling Units 1 | . 1 . . . Scanalyzers . | . . . . . Garrison Access . | . . . . . Terminal Hacks 28 | . 1 1 . 26 Record 26 | . . . . 26 Alert Level 1 | . . 1 . . Locate Traps 1 | . 1 . . . Fabricator Hacks . | . . . . . Repair Station Hacks 2 | . . 2 . . Scan Component 1 | . . 1 . . Repair 1 | . . 1 . . Recycling Unit Hacks . | . . . . . Scanalyzer . | . . . . . Garrison Access Hacks . | . . . . . Unauthorized Hacks . | . . . . . Terminals . | . . . . . Fabricators . | . . . . . Repair Stations . | . . . . . Recycling Units . | . . . . . Scanalyzers . | . . . . . Garrison Access . | . . . . . Data Cores Recovered . | . . . . . Used . | . . . . . Hacking Detections 5 | . 3 2 . . Full Trace Events . | . . . . . Feedback Events . | . . . . . Feedback Blocked . | . . . . . Robot Schematics Acquired . | . . . . . Robots Built . | . . . . . Authchips . | . . . . . Time . | . . . . . Total Robot Build Rating . | . . . . . Part Schematics Acquired . | . . . . . Parts Built . | . . . . . Authchips . | . . . . . Time . | . . . . . Total Part Build Rating . | . . . . . Part Studies Acquired . | . . . . . Parts Repaired 1 | . . 1 . . Time 26 | . . 26 . . Parts Recycled . | . . . . . Recycled Matter . | . . . . . Retrieved Matter . | . . . . . Retrieved Components . | . . . . . Parts Scanalyzed . | . . . . . Part Schematics Acquired . | . . . . . Parts Damaged . | . . . . . Bothacking | -11 -10 -9 -9 -9 ------------ Run | Yrd Mat Mat Min Exi Used RIF Installer . | . . . . . Robots Hacked . | . . . . . Non-combat . | . . . . . Combat . | . . . . . Robot Hacks Applied . | . . . . . Relay Couplers Released . | . . . . . Fabnet Peak Effective % . | . . . . . Robots Rewired . | . . . . . Allies Hacked . | . . . . . Hacks Repelled . | . . . . . Allies | -11 -10 -9 -9 -9 -------- Run | Yrd Mat Mat Min Exi Total Allies 2 | . . . 2 . Largest Group 2 | . . . 2 1 Highest-Rated Group 54 | . . . 54 31 Highest-Rated Ally 31 | . . . 31 31 Total Orders . | . . . . . Ally Attacks 12 | . . . 12 . Total Damage 236 | . . . 236 . Kills 4 | . . . 4 . Allies Corrupted . | . . . . . Allies Melted . | . . . . . Intel | -11 -10 -9 -9 -9 ------- Run | Yrd Mat Mat Min Exi Active Infowar (turns) 305 | 26 279 . . . Seismic 305 | 26 279 . . . Robot Analysis Total . | . . . . . Derelict Logs Recovered 1 | . . . 1 . Drone Launches . | . . . . . Drone Recoveries . | . . . . . Exploration | -11 -10 -9 -9 -9 ------------- Run | Yrd Mat Mat Min Exi Turns Passed 2504 | 106 292 770 939 397 Spaces Moved 1547 | 58 195 389 674 231 Core 19 | 8 . . . 11 Treads 715 | . . 53 442 220 Legs 443 | 50 195 198 . . Wheels . | . . . . . Hover 370 | . . 138 232 . Flight . | . . . . . Fastest Speed 48 | 50 120 48 72 50 Average Speed 124 | 110 120 100 129 156 Slowest Speed 300 | 120 120 160 160 300 Overloaded Moves . | . . . . . Propulsion Burnouts . | . . . . . Robots Hopped . | . . . . . Potential Cave-ins . | . . . . . Cave-ins Triggered . | . . . . . Exploration Rate (%) 40 | 5 27 33 96 41 Regions Visited 4 Branch Regions 2 Pre-discovered Areas . | . . . . . Known Exits Taken . | . . . . . Unknown Exits Taken 4 | 1 1 1 1 . Scrap Searched 1 | . . . 1 . Spaces Dug 1 | 1 . . . . Terrain Destroyed 10 | 1 . . 9 . Melee . | . . . . . Projectile 10 | 1 . . 9 . AOE . | . . . . . Terrain Rammed . | . . . . . Walls Destroyed . | . . . . . Machines Disabled . | . . . . . Actions | -11 -10 -9 -9 -9 --------- Run | Yrd Mat Mat Min Exi Total 1928 | 79 220 664 712 253 Wait 164 | . 2 160 . 2 Move 1543 | 57 194 388 673 231 Hop . | . . . . . Pick Up 32 | 5 3 16 6 2 Fast Attach 17 | 7 1 8 1 . Attach 16 | . 2 9 3 2 Detach 3 | . . 1 2 . Swap 16 | 2 . 6 7 1 Drop 22 | . . 13 5 4 Fire 102 | 8 18 61 11 4 Melee 10 | . . . 3 7 Ram 2 | . . 2 . . Kick . | . . . . . Crush 1 | . . . 1 . Escape Stasis . | . . . . . Rewire . | . . . . . Trap . | . . . . . Miscellaneous . | . . . . . Route ------- -11/Scrapyard -10/Materials -9/Materials -9/Mines (discovered 3 exits: [*Mat x2] / *Exi) -9/Exiles (discovered 1 exit: [*Min]) History --------- Turn | Location | Event 6 | -11/Scrapyard | Discovered new exit (range 15) 107 | -11/Scrapyard | Entered Materials 303 | -10/Materials | Build established: Mutant 345 | -10/Materials | Discovered new exit (range 4) 399 | -10/Materials | Entered another Materials area 399 | -9/Materials | Evolved 2 slots: Propulsion x2 625 | -9/Materials | Repaired Aluminum Leg 945 | -9/Materials | System corruption reached 10% 975 | -9/Materials | Lost 4 parts (1p2n1u) 1088 | -9/Materials | Discovered new exit (range 7) 1169 | -9/Materials | Entered Mines 1177 | -9/Mines | Learned Materials terminal intel 1195 | -9/Mines | Assembled infested the area 1241 | -9/Mines | Build established: Scavenger-Mutant 1448 | -9/Mines | Discovered new exit (range 5) 1622 | -9/Mines | A weapon hastily lodged in a ceiling crevice suddenly fell to the ground 1896 | -9/Mines | Discovered new exit (range 11) 2100 | -9/Mines | Deemed a non-threat by the Exiles lab entrance 2100 | -9/Mines | Discovered new exit (range 5) 2108 | -9/Mines | Entered Exiles 2108 | -9/Exiles | Accompanied by 1 ally 2138 | -9/Exiles | Led the pair of lost Derelicts to a safe place 2156 | -9/Exiles | Met 8R-AWN 2203 | -9/Exiles | Discovered new exit (range 14) 2273 | -9/Exiles | Met EX-HEX 2318 | -9/Exiles | Met EX-BIN 2450 | -9/Exiles | Attacked by the Exiles 2458 | -9/Exiles | Core integrity fell below 50% 2489 | -9/Exiles | Core integrity fell below 20% 2505 | -9/Exiles | Destroyed by as-31192 with Assembled F-torch Last Messages --------------- 02473_ Lgt. Treads destroyed. 02474_ as-94257 suffers critical hit (Smash). 02474_ Destroyed Asb. Hover Unit. 02474_ as-94257 system corrupted by crushing effect. 02476_ Imp. Hover Unit destroyed. 02477_ as-94257 destroyed. 02479_ Bore Cannon destroyed. 02479_ Machine disabled. 02481_ Aluminum Leg destroyed. 02482_ Dropped Sml. Storage Unit. 02493_ Destroyed Asb. Hover Unit. 02493_ as-31192 system corrupted by crushing effect. 02493_ as-31192 knocked back. 02504_ Destroyed Asb. Hover Unit. 02504_ as-94629 system corrupted by crushing effect. 02504_ Lgt. Assault Rifle destroyed. 02505_ as-94629 system terminally corrupted. Map ----- +----------------------------------------------------+ | ?????????????# #?????????????????????????????? | | ?????????????# #########?????????????????????? | | ?????????????# ##""""""#?????????????????????? | | ?????????????# ## """#?????????????????????? | | ?????????????# X""#?????????????????????? | | ?????????????# ## """#?????????????????????? | | ?????######### ##""""""#?????????????????????? | | ?????#""""""## #########?????????????????????? | | ?????#"""" ## #?????????????????????????????? | | ?????#""X" #?????????????????????????????? | | ?????#" #?????????????????????????????? | | ?????#" ## #?????????????????????????????? | | ?????#""""""## #????#????????????????????????? | | ?????##"###### #?#""""""?????????????????????? | | ????? "?????# #?#""""""?????????????????????? | | ????"""??????# #?#"""""""#???????????????????? | | ????"""?????## ###"" """"#???????????????????? | | ????????????#" """#???????????????????? | | ????????????#" """#???????????????????? | | ????????????#" """#???????????????????? | | ????????????#" """#???????????????????? | | ????????????#" """#???????????????????? | | ????????????# a """##??????????????????? | | ????????????## aa """""??????????????????? | | ?????????????# ag% """######??????????????? | | ?????????????#" "X"@""""" #??????????????? | | ?????????????#" a """ # "?????????????????? | | ?????????????#" !["""""""""#???????????????????? | | ????????????##" ###########???????????????????? | | ???????????##" % #?????????????????????????????? | | ????????####"" #?????????????????????????????? | | ????????"""""" ##????????????????????????????? | | ???????"" " " ##???###########?????????????? | | ???????"" " #####"""""""""##????????????? | | ?????? " " """ """"##???????????? | | ???? "" " #???????????? | | ???? " """#???????????? | | ??? " "#???????????# | | ???? " "##?????????## | | ???? % ""###???????#" | | ????? """""" """#??????##" | | ?????? ######""" "#????### | | ?????? ""#?????#####""" ##???# | | ?????""?#??????????##""" ##?## | | ????????????????????#"""" ### | | ????????????????????#"" | | ?????????????????????""" # | | ????????????????????? ""# | | ????????????????????? #"""## | | ???????????????????? ######? | +----------------------------------------------------+ Best States ------------- Heat Dissipation 28 Energy Generation 14 Energy Capacity 450 Matter Stores 300 Matter Capacity 350 Sight Range 16 Terrain Scan Density 85 Power Shielding 33 Evasion (%) 55 Recoil Reduction 2 Item Schematics ----------------- None Robot Schematics ------------------ None Fabricated ------------ Nothing Repaired ---------- Aluminum Leg | 17% | -9/Materials Studied --------- None Alien Tech Used ----------------- None Achievements -------------- Backstab Challenges ------------ None Game ------ Seed KineticStormMegatreads Manual? 0 Play Time 00:54:40 Cumulative 18.7 hours Start 2026.09.03 @ 08:54:00 End 2026.09.03 @ 12:12:01 Sessions 3 Manual Loads 0 Difficulty Rogue Special Mode None Game No. 10 Rogue 8 Adventurer 2 Explorer 0 Win Type - Total 0 Types 0/0/0/0/0/0/0/0/0/0 Lore% 4 Gallery% 14 Achievement% 13 Wizard Run 0 Options --------- Layout 1 ASCII 0 Keyboard 0 Movement Mouse Keybinds 0 Fullscreen 1 Font 24/Smallcaps Map View 50x35 Zoom Use 0% Tactical HUD 1 Map Filters NONE Filters NONE Steam 1 RUN: 64770f71-33e7-4ff9-994c-f94ed38326f3